bitfinex-derivatives/quotes_ETHF0:USTF0_20260305
["timestamp","ask_amount","ask_price","bid_price","bid_amount"]
[1772678582454,1.19766231,2117.2,2116.6,0.00443699]
[1772678584062,1.19766231,2117.2,2116.6,1.15484292]
[1772678584560,1.19766231,2117.2,2116.6,0.00443699]
[1772678588660,1.19766231,2116.8,2116.2,1.15040593]
[1772678588867,1.19766231,2116.6,2116.0,1.15040593]
[1772678589465,1.19766231,2116.6,2115.9,0.23623]
[1772678589661,1.19766231,2116.6,2115.9,1.39008383]
[1772678594463,1.19766231,2116.4,2115.9,1.39008383]
[1772678594665,1.20127901,2116.4,2115.9,1.39008383]
[1772678594863,1.19766231,2116.9,2116.3,1.15040593]
[1772678595367,13.85866231,2117.1,2116.5,1.15040593]
[1772678595566,1.19766231,2117.2,2116.7,1.15040593]
[1772678595766,1.20150324,2117.2,2116.7,1.15040593]
[1772678596767,1.20150324,2117.2,2116.6,1.9111006]
[1772678596768,1.19766231,2117.5,2117.1,1.15040593]
[1772678596966,1.19766231,2117.7,2117.1,1.15040593]
[1772678597669,1.20219978,2117.7,2117.1,1.15040593]
[1772678597864,2.87260291,2118.0,2117.2,1.15040593]
[1772678598168,1.19766231,2117.9,2117.2,1.15040593]
[1772678598872,1.6749406,2117.8,2117.2,1.15040593]
[1772678599073,1.18783298,2117.7,2117.2,1.15040593]
[1772678602572,2.86277358,2117.8,2117.2,1.15040593]
[1772678602770,1.18783298,2117.7,2117.2,1.15040593]
[1772678605671,1.19277382,2117.9,2117.2,1.38649593]
[1772678607672,0.00494084,2117.9,2117.4,1.0830238]
[1772678607871,1.08612194,2118.0,2117.4,1.0830238]
[1772678608579,0.29619119,2118.2,2117.6,1.0830238]
[1772678608777,0.29619119,2118.2,2117.6,1.08856151]
[1772678608778,0.30050091,2118.2,2117.6,1.08856151]
[1772678610181,2.04361762,2118.1,2117.6,1.08856151]
[1772678610578,0.36867702,2118.0,2117.6,1.08856151]
[1772678611478,0.36583453,2117.8,2117.6,0.00553771]
[1772678611882,0.36583453,2117.8,2117.4,1.0830238]
[1772678612080,0.35770653,2117.6,2117.2,1.3191138]
[1772678612876,0.35770653,2117.6,2117.2,0.00402803]
[1772678613180,2.01983813,2117.5,2117.2,1.08705183]
[1772678614483,0.34489753,2117.5,2117.2,1.08705183]
[1772678615878,0.35107946,2117.6,2117.2,1.08705183]
[1772678617385,0.35273891,2118.1,2117.2,1.08705183]
[1772678617588,0.35273891,2118.0,2117.2,1.08705183]
[1772678619985,0.35273891,2118.0,2117.2,0.00402803]
[1772678620289,0.34453469,2117.6,2116.8,0.23614]
[1772678620585,0.34453469,2117.6,2116.8,1.0830238]
[1772678621284,0.34453469,2117.6,2116.8,1.08911651]
[1772678622082,0.34453469,2117.6,2117.0,1.0830238]
[1772678622889,0.34453469,2117.6,2117.2,1.0830238]
[1772678623090,0.34276687,2117.8,2117.2,1.0830238]
[1772678626288,0.34881701,2117.7,2117.2,1.0830238]
[1772678626586,0.34881701,2117.9,2117.4,1.0830238]
[1772678632590,4.30225162,2118.0,2117.4,1.0830238]
[1772678633493,0.36561925,2117.9,2117.4,1.0830238]
[1772678634593,2.03831109,2117.9,2117.4,1.0830238]
[1772678636192,0.36873736,2117.8,2117.4,1.0830238]
[1772678636589,2.0414292,2117.9,2117.4,1.0830238]
[1772678638900,1.07218518,2118.1,2117.6,1.15648652]
[1772678639092,2.74487702,2118.0,2117.6,1.15648652]
[1772678639396,1.07218518,2117.9,2117.6,1.15648652]
[1772678643496,2.74487702,2118.0,2117.6,1.15648652]
[1772678645499,1.07218518,2118.0,2117.6,1.15648652]
[1772678645798,1.07218518,2118.1,2117.6,1.15648652]
[1772678648299,1.07218518,2117.9,2117.6,1.15648652]
[1772678648501,1.07218518,2117.7,2117.2,1.15648652]
[1772678648797,1.07218518,2117.2,2116.9,1.15648652]
[1772678649100,2.74487702,2117.1,2116.8,0.00609271]
[1772678649294,2.74487702,2117.1,2116.7,1.15648652]
[1772678650200,1.07218518,2117.0,2116.7,1.16105788]
[1772678650701,1.67269184,2117.1,2116.7,1.16105788]
[1772678651001,1.07218518,2117.0,2116.7,1.16105788]
[1772678651504,1.07218518,2116.8,2116.4,1.15648652]
[1772678651693,2.74487702,2116.7,2116.4,1.15648652]
[1772678651893,2.74487702,2116.7,2116.2,1.07693264]
[1772678652599,2.74874584,2116.7,2116.2,1.08061334]
[1772678654615,1.076054,2116.7,2116.2,1.08061334]
[1772678657605,1.076054,2116.7,2116.1,0.23621]
[1772678657908,1.076054,2116.7,2115.7,1.15648652]
[1772678657909,1.07218518,2116.6,2115.7,1.15648652]
[1772678658114,1.076054,2116.7,2115.9,1.15465701]
[1772678658912,1.076054,2116.7,2116.1,1.14129628]
[1772678668420,0.00386882,2116.7,2116.1,1.14129628]
[1772678668611,1.16890146,2116.7,2116.1,1.14129628]
[1772678668820,1.16503264,2116.9,2116.3,1.1142242]
[1772678669820,1.16503264,2116.8,2115.8,1.10910605]
[1772678670021,1.16858564,2116.8,2115.8,1.11297487]
[1772678670316,1.16858564,2116.8,2116.0,1.1036639]
[1772678675020,1.16503264,2116.6,2115.9,1.30092791]
[1772678675824,1.16858564,2116.8,2115.9,1.30092791]
[1772678680229,1.16858564,2116.8,2116.0,1.0056868]
[1772678681526,1.16858564,2116.8,2116.1,0.23622]
[1772678681726,1.16858564,2116.8,2116.2,0.97122016]
[1772678682123,1.16858564,2116.8,2116.1,1.20224801]
[1772678683933,1.16503264,2116.7,2116.1,0.96602801]
[1772678684127,1.16503264,2116.5,2115.9,4.84009958]
[1772678684328,1.16503264,2116.5,2115.9,0.93644516]
[1772678686631,1.16503264,2116.7,2115.9,0.93644516]
[1772678689334,1.18807442,2117.1,2116.4,0.83298062]
[1772678689532,1.18807442,2117.3,2116.6,0.83298062]
[1772678689932,1.18807442,2117.4,2116.6,0.83298062]
[1772678690536,1.1931545,2117.4,2116.6,0.83298062]
[1772678690731,0.00508008,2117.4,2116.6,0.83298062]
[1772678691632,1.1931545,2117.4,2116.6,0.83298062]
[1772678691938,1.1931545,2117.4,2116.6,0.83263331]
[1772678700243,1.1931545,2117.4,2117.0,0.79016233]
[1772678700547,1.18807442,2117.8,2117.0,0.79016233]
[1772678701347,1.18807442,2117.5,2116.5,1.37361817]
[1772678701539,1.18807442,2117.3,2116.5,1.37361817]
[1772678703346,1.18807442,2117.3,2116.5,1.13744817]
[1772678703846,1.18807442,2117.1,2116.5,1.13744817]
[1772678704548,1.18807442,2117.4,2116.5,1.13744817]
[1772678705347,1.18807442,2117.4,2116.7,1.13744817]
[1772678705544,1.18807442,2117.4,2116.9,1.13744817]
[1772678707448,1.18807442,2117.7,2117.1,1.13744817]
[1772678707650,1.19370625,2117.8,2117.3,1.13744817]
[1772678707854,1.19370625,2117.8,2117.3,1.14148888]
[1772678710657,12.706,2118.5,2117.4,1.13744817]
[1772678710658,1.18807442,2118.0,2117.4,1.13744817]
[1772678710861,1.18807442,2118.4,2117.8,1.13744817]
[1772678711658,1.19259643,2118.4,2117.8,1.13744817]
[1772678713359,0.00452201,2118.4,2117.9,1.37346817]
[1772678713560,1.18807442,2118.6,2117.9,1.37346817]
[1772678714666,1.19274891,2118.6,2117.9,1.37346817]
[1772678716465,0.00467449,2118.6,2117.9,1.37346817]
[1772678716669,1.18807442,2119.0,2117.9,1.37346817]
[1772678717066,2.40715122,2119.0,2117.9,1.37346817]
[1772678717365,1.18807442,2118.6,2117.5,1.13744817]
[1772678717573,1.19245246,2118.6,2117.5,1.13744817]
[1772678718467,1.19245246,2118.6,2117.7,1.13744817]
[1772678721870,1.085694,2118.3,2117.4,1.10422607]
[1772678727776,1.085694,2118.3,2117.4,1.34028607]
[1772678727978,1.16303592,2118.5,2117.8,1.18018861]
[1772678728377,1.16303592,2118.5,2118.0,1.18018861]
[1772678729179,1.16303592,2118.5,2117.6,1.18018861]
[1772678729571,1.16303592,2118.5,2117.5,1.41624861]
[1772678731580,1.16303592,2118.5,2117.5,1.18018861]
[1772678734483,1.16303592,2118.2,2117.5,1.18018861]
[1772678734674,1.16303592,2118.2,2117.7,1.18018861]
[1772678735480,1.16303592,2118.4,2118.1,1.18018861]
[1772678735677,1.16303592,2118.4,2117.9,1.18018861]
[1772678735879,1.16303592,2118.2,2117.5,1.18018861]
[1772678736081,1.16303592,2118.0,2117.5,1.18018861]
[1772678739179,1.16303592,2118.2,2117.5,1.18018861]
[1772678741087,1.16303592,2118.0,2117.3,5.1139816]
[1772678741290,1.16303592,2118.0,2117.3,1.18422932]
[1772678742384,5.91622115,2118.4,2117.3,1.18422932]
[1772678742385,1.16303592,2118.2,2117.8,1.18018861]
[1772678742581,5.10284486,2118.4,2118.0,1.18018861]
[1772678742889,1.16303592,2118.4,2118.0,1.18018861]
[1772678743482,1.16303592,2118.4,2117.8,1.18018861]
[1772678744186,1.16303592,2118.2,2117.6,1.41623861]
[1772678744587,1.16303592,2118.0,2117.4,1.18018861]
[1772678745484,5.91622115,2118.5,2117.4,1.18018861]
[1772678745689,1.16303592,2118.4,2117.6,1.18018861]
[1772678746387,1.16741396,2118.6,2117.6,1.18018861]
[1772678746590,1.16741396,2118.6,2118.0,1.18018861]
[1772678748087,0.00437804,2118.6,2118.0,1.18018861]
[1772678749489,1.156219,2118.9,2118.2,1.20025333]
[1772678750491,1.16205608,2118.9,2118.2,1.20025333]
[1772678752392,0.00583708,2118.9,2118.2,1.20025333]
[1772678752588,1.156219,2119.3,2118.4,1.20025333]
[1772678752788,1.156219,2119.5,2118.6,1.20025333]
[1772678753692,1.156219,2119.3,2118.3,1.20025333]
[1772678755393,1.156219,2119.0,2118.1,1.20025333]
[1772678758097,13.789219,2119.2,2118.2,0.23599]
[1772678758295,1.156219,2119.1,2118.3,1.20025333]
[1772678759595,1.156219,2119.1,2118.2,1.20025333]
[1772678761503,1.156219,2119.1,2118.4,1.20025333]
[1772678761899,1.156219,2119.1,2118.3,0.23597]
[1772678762295,1.156219,2119.1,2118.2,1.20025333]
[1772678762603,1.156219,2119.1,2118.0,1.20025333]
[1772678762604,1.156219,2119.0,2118.0,1.20025333]
[1772678763004,1.156219,2119.0,2118.2,1.20025333]
[1772678763206,1.156219,2119.0,2118.4,1.20025333]
[1772678763407,1.156219,2119.3,2118.4,1.20025333]
[1772678766001,1.156219,2119.3,2118.6,1.20025333]
[1772678766504,1.156219,2119.3,2118.2,1.20025333]
[1772678767108,1.156219,2119.3,2118.4,1.20025333]
[1772678768603,1.156219,2118.4,2117.7,1.20025333]
[1772678768807,1.156219,2118.4,2117.4,1.20025333]
[1772678769910,1.156219,2118.4,2117.3,0.00404071]
[1772678770508,1.156219,2118.4,2117.3,1.20429404]
[1772678771511,1.156219,2118.1,2117.3,1.20429404]
[1772678773909,1.156219,2118.6,2117.3,1.44037404]
[1772678774111,1.156219,2118.8,2117.7,1.20025333]
[1772678774311,1.156219,2118.8,2117.7,1.43629333]
[1772678774510,1.156219,2119.0,2117.7,1.43629333]
[1772678774711,1.156219,2119.0,2118.0,1.20025333]
[1772678775009,1.156219,2119.3,2118.0,1.20025333]
[1772678775316,15.11440824,2119.4,2117.7,5.80671]
[1772678775317,1.156219,2119.0,2117.7,1.20025333]
[1772678776615,1.156219,2119.0,2117.9,1.20025333]
[1772678778417,1.156219,2119.3,2118.3,1.20025333]
[1772678778617,0.00436274,2119.5,2118.3,1.20025333]
[1772678778618,1.20529635,2119.5,2118.3,1.20025333]
[1772678779712,1.20529635,2119.5,2118.5,1.16620048]
[1772678779907,1.20529635,2119.5,2118.7,1.16620048]
[1772678782517,1.20529635,2119.5,2118.2,1.16620048]
[1772678783323,1.20529635,2119.5,2118.4,1.16620048]
[1772678785511,1.20529635,2119.5,2118.6,1.16620048]
[1772678786813,1.20529635,2119.5,2118.1,1.16620048]
[1772678787017,1.32489017,2119.4,2118.1,1.16620048]
[1772678788518,1.32489017,2119.3,2117.7,1.26625695]
[1772678788725,1.32489017,2119.2,2117.7,1.26625695]
[1772678789725,1.32489017,2119.2,2117.9,1.26625695]
[1772678790120,1.32489017,2119.2,2118.1,1.26625695]
[1772678791928,1.32489017,2118.9,2117.8,1.26625695]
[1772678792122,1.32489017,2118.9,2118.0,1.26625695]
[1772678792328,1.32489017,2119.1,2118.4,1.26625695]
[1772678792524,1.32489017,2119.4,2118.6,1.26625695]
[1772678792924,1.32925291,2119.5,2118.8,1.26625695]
[1772678793226,1.32925291,2119.5,2118.8,1.27017764]
[1772678793923,1.32489017,2119.9,2118.8,1.27017764]
[1772678794520,1.32489017,2120.1,2119.0,1.26625695]
[1772678794820,1.32489017,2120.1,2118.9,5.80331]
[1772678794821,1.32489017,2120.7,2119.8,1.26625695]
[1772678795027,1.32489017,2121.3,2119.8,1.26625695]
[1772678795732,1.32489017,2121.3,2120.0,1.26625695]
[1772678795933,1.32881916,2121.3,2120.0,1.26625695]
[1772678798737,1.32489017,2121.1,2119.3,1.26625695]
[1772678798934,1.32881916,2121.3,2120.1,1.26625695]
[1772678800743,0.00392899,2121.3,2120.2,7.30185695]
[1772678801038,0.00392899,2121.3,2120.3,1.26625695]
[1772678801241,1.32489017,2121.7,2120.5,1.26625695]
[1772678802244,1.32872245,2121.7,2120.5,1.26625695]
[1772678803240,0.00383228,2121.7,2120.7,1.26625695]
[1772678803448,1.32489017,2122.7,2120.9,1.26625695]
[1772678803643,1.32489017,2122.5,2121.1,1.26625695]
[1772678803844,1.32489017,2122.3,2120.9,1.26625695]
[1772678804048,1.32489017,2122.1,2120.9,1.26625695]
[1772678804247,1.32489017,2121.9,2120.5,1.26625695]
[1772678804443,1.33090231,2121.9,2120.5,1.26625695]
[1772678808947,1.35007987,2121.9,2121.0,1.40256032]
[1772678809152,1.35007987,2121.9,2121.2,1.40256032]
[1772678810348,1.35007987,2121.9,2120.6,1.40256032]
[1772678811154,1.35007987,2121.9,2120.8,1.40256032]
[1772678820059,1.34406773,2121.7,2120.8,1.40256032]
[1772678821154,1.35007987,2121.9,2121.0,1.40256032]
[1772678821348,5.87775548,2121.8,2121.0,1.40256032]
[1772678822255,7.22783535,2121.9,2121.0,1.40256032]
[1772678822458,5.87775548,2121.8,2121.0,1.40256032]
[1772678822659,1.34406773,2121.7,2121.0,1.40256032]
[1772678823250,1.34406773,2121.5,2121.0,1.40256032]
[1772678824159,7.25719318,2121.4,2121.0,1.40256032]
[1772678824360,1.34406773,2121.4,2120.9,1.40256032]
[1772678824557,5.91347624,2121.3,2120.6,0.23572]
[1772678824760,5.91622115,2121.7,2120.6,0.23572]
[1772678824761,1.34406773,2121.5,2120.7,1.40256032]
[1772678824962,5.91322932,2121.4,2120.7,1.40256032]
[1772678826756,5.91322932,2121.4,2120.8,0.2357]
[1772678826957,5.91322932,2121.4,2120.9,1.40256032]
[1772678827359,5.91322932,2121.3,2120.9,1.40256032]
[1772678827561,1.34406773,2121.5,2120.9,1.40256032]
[1772678827761,7.22445654,2121.5,2120.9,1.40256032]
[1772678827963,5.88038881,2121.4,2120.9,1.40256032]
[1772678828165,5.88038881,2121.3,2120.9,1.40256032]
[1772678828461,5.88038881,2121.2,2120.9,1.40256032]
[1772678828763,5.24798985,2121.5,2120.9,1.40256032]
[1772678828963,5.88324205,2121.4,2120.9,1.40256032]
[1772678829664,1.34406773,2121.6,2120.9,1.40256032]
[1772678831162,4.5793488,2121.9,2121.2,0.23565]
[1772678831365,0.75966247,2122.1,2121.5,1.10231289]
[1772678831568,0.75966247,2122.1,2121.4,1.63819032]
[1772678832463,0.76381476,2122.1,2121.4,1.63819032]
[1772678832859,0.76381476,2122.1,2121.0,1.40256032]
[1772678833467,0.76381476,2122.1,2121.2,1.40256032]
[1772678835672,0.76381476,2122.1,2121.4,1.40256032]
[1772678836072,0.76381476,2122.1,2121.3,1.63820032]
[1772678839375,1.56690848,2122.1,2121.3,1.63820032]
[1772678840573,1.56690848,2122.1,2120.9,1.50112213]
[1772678841277,1.56275619,2121.9,2120.9,1.50112213]
[1772678841778,1.56275619,2121.7,2120.7,1.50112213]
[1772678841973,1.56275619,2121.5,2120.7,1.50112213]
[1772678842175,1.56275619,2121.3,2120.7,1.50112213]
[1772678842776,1.56275619,2121.3,2120.4,1.50112213]
[1772678843177,1.56275619,2121.1,2120.4,1.50112213]
[1772678845380,1.56275619,2121.1,2120.3,0.24020621]
[1772678846482,1.56275619,2120.9,2120.3,0.24020621]
[1772678847282,1.56275619,2120.9,2120.3,0.00446621]
[1772678849886,5.37826569,2120.8,2120.0,1.66868354]
[1772678850086,1.72051546,2120.7,2120.2,1.66868354]
[1772678850287,1.72051546,2120.9,2120.2,1.66868354]
[1772678850788,1.72051546,2120.9,2120.2,1.67270795]
[1772678850981,20.15443127,2121.5,2120.4,1.66868354]
[1772678850982,1.72051546,2121.3,2120.4,1.66868354]
[1772678851181,7.40843127,2121.6,2120.4,1.66868354]
[1772678851182,1.72051546,2121.1,2120.4,1.66868354]
[1772678854585,1.72051546,2121.1,2120.3,0.23575]
[1772678857191,1.72051546,2121.1,2120.3,1.90443354]
[1772678862396,1.72051546,2121.1,2120.3,0.23575]
[1772678862794,1.72051546,2121.1,2120.3,1.90443354]
[1772678870600,1.72051546,2121.1,2120.3,0.23575]
[1772678871000,1.72051546,2121.1,2120.3,1.94646625]
[1772678873399,7.64726048,2121.1,2120.2,0.00402441]
[1772678873599,1.67498308,2121.0,2120.2,0.00402441]
[1772678874200,1.67498308,2121.0,2120.2,1.71474066]
[1772678878007,1.67498308,2121.0,2120.2,1.95049066]
[1772678886516,1.67498308,2121.0,2120.6,1.71071625]
[1772678888920,1.67498308,2121.0,2120.3,1.71071625]
[1772678889823,1.67498308,2121.0,2120.2,0.00402441]
[1772678890121,1.67498308,2121.0,2120.2,1.71474066]
[1772678891117,1.67498308,2121.3,2120.4,1.71071625]
[1772678891322,0.41884106,2121.2,2120.4,1.71071625]
[1772678891522,0.41884106,2121.1,2120.4,1.71071625]
[1772678891722,1.67498308,2121.2,2120.4,1.71071625]
[1772678891923,2.08714879,2121.1,2120.4,1.71071625]
[1772678892127,1.67498308,2121.1,2120.6,1.71071625]
[1772678892423,1.67498308,2121.1,2120.5,1.94644625]
[1772678892624,1.67498308,2120.9,2120.4,1.71071625]
[1772678893016,1.67498308,2120.9,2120.3,1.71071625]
[1772678893421,1.67498308,2120.9,2120.0,1.71071625]
[1772678893625,1.67498308,2120.9,2119.7,7.62069495]
[1772678893626,1.67498308,2120.6,2119.7,1.71071625]
[1772678893824,5.63243838,2120.4,2119.4,1.71071625]
[1772678894027,2.08699288,2120.3,2119.4,1.71071625]
[1772678894230,1.67498308,2120.1,2119.4,1.71071625]
[1772678894528,1.68051498,2120.1,2119.4,0.00356288]
[1772678895426,1.67498308,2119.9,2118.8,1.71071625]
[1772678895623,1.67498308,2119.8,2118.8,1.71071625]
[1772678896421,1.67498308,2119.8,2118.8,1.71636023]
[1772678899027,1.67498308,2119.8,2119.0,1.88472911]
[1772678899229,1.67498308,2119.8,2119.2,1.88472911]
[1772678904134,1.67498308,2119.8,2119.0,1.88472911]
[1772678904437,1.67498308,2119.8,2118.8,0.00564398]
[1772678906037,1.67498308,2119.8,2118.4,1.88472911]
[1772678907033,1.67498308,2119.8,2118.4,1.88869727]
[1772678908636,1.67498308,2119.8,2118.6,1.97021025]
[1772678909138,1.98508375,2119.6,2118.6,1.97021025]
[1772678910434,1.98508375,2119.6,2118.8,1.97021025]
[1772678910937,1.98508375,2120.0,2119.0,1.97021025]
[1772678912042,1.98508375,2120.0,2119.2,1.97021025]
[1772678912541,1.98508375,2120.0,2119.4,1.97021025]
[1772678912735,0.0055319,2120.1,2119.4,1.97021025]
[1772678913133,1.99061565,2120.1,2119.4,1.97021025]
[1772678913940,1.98508375,2120.7,2119.6,1.97021025]
[1772678915043,1.98880858,2120.7,2119.6,1.97021025]
[1772678921743,1.98880858,2120.7,2119.5,0.23584]
[1772678922048,5.94626388,2120.7,2119.5,0.23584]
[1772678922242,2.39448619,2120.6,2119.0,0.23589]
[1772678922546,2.39443776,2120.5,2119.1,1.97021025]
[1772678922744,1.98508375,2120.5,2119.1,1.97021025]
[1772678923240,1.98508375,2120.5,2119.3,1.97021025]
[1772678923436,1.98508375,2120.5,2119.5,1.97021025]
[1772678925350,1.98508375,2120.5,2119.7,1.97021025]
[1772678926444,1.98508375,2120.5,2119.5,1.97021025]
[1772678926640,1.98508375,2120.5,2119.2,0.23587]
[1772678926843,1.98508375,2120.5,2119.3,1.97021025]
[1772678927947,1.98508375,2120.5,2119.5,1.97021025]
[1772678929250,1.98508375,2120.5,2119.4,0.23585]
[1772678929251,2.04457339,2120.3,2119.4,2.14686014]
[1772678931554,2.04457339,2120.3,2119.8,1.91101014]
[1772678933251,3.96118013,2120.7,2119.8,1.91101014]
[1772678933252,2.04457339,2120.6,2119.8,1.91101014]
[1772678935356,2.04457339,2120.6,2120.0,1.91101014]
[1772678935556,2.04457339,2120.6,2120.0,1.91563578]
[1772678935849,2.04457339,2120.6,2119.7,1.91101014]
[1772678936855,2.04457339,2120.6,2119.7,1.9160296]
[1772678938447,2.04457339,2120.6,2119.7,0.00501946]
[1772678938649,2.04457339,2120.4,2119.7,0.00501946]
[1772678939053,2.04457339,2120.4,2119.4,2.14686014]
[1772678939255,2.45625746,2120.3,2119.4,2.14686014]
[1772678939555,2.04457339,2120.3,2119.4,2.14686014]
[1772678939955,2.04457339,2120.3,2119.4,2.15218603]
[1772678940355,2.04457339,2120.1,2119.4,2.15218603]
[1772678940857,2.04457339,2120.1,2119.4,0.00532589]
[1772678941656,2.04457339,2120.1,2119.4,1.91633603]
[1772678941859,2.04457339,2120.1,2119.4,2.15218603]
[1772678942059,2.04457339,2120.3,2119.4,2.15218603]
[1772678943361,3.9574553,2120.6,2119.4,2.15218603]
[1772678943559,2.45369493,2120.5,2119.4,2.15218603]
[1772678943760,2.04457339,2120.5,2119.4,2.15218603]
[1772678945361,2.04457339,2120.4,2119.4,2.15218603]
[1772678946369,2.04457339,2120.4,2119.8,0.23581]
[1772678946567,2.04457339,2120.4,2119.9,1.91101014]
[1772678947965,2.04457339,2120.6,2120.1,1.91101014]
[1772678948169,0.00372483,2120.7,2120.1,1.91101014]
[1772678948668,2.04829822,2120.7,2120.1,1.91101014]
[1772678950167,2.04457339,2120.9,2120.3,1.91101014]
[1772678950674,2.04457339,2120.9,2119.9,1.91101014]
[1772678951272,2.04992816,2120.9,2119.9,1.91101014]
[1772678952371,2.04992816,2120.9,2120.1,1.91101014]
[1772678959469,2.04992816,2120.9,2120.3,2.00466334]
[1772678961473,0.00535477,2120.9,2120.3,2.00466334]
[1772678961677,1.88500478,2121.2,2120.5,2.00466334]
[1772678962872,1.88977685,2121.2,2120.4,0.23574]
[1772678963073,1.88977685,2121.2,2120.4,2.24040334]
[1772678963673,0.00477207,2121.2,2120.4,4.64224679]
[1772678963979,1.88500478,2121.7,2121.1,2.00466334]
[1772678964174,1.88500478,2121.7,2121.3,2.00466334]
[1772678964375,1.88500478,2122.4,2121.5,2.00466334]
[1772678964577,1.88500478,2122.4,2121.7,2.00466334]
[1772678964778,1.88500478,2122.9,2121.7,2.00466334]
[1772678964971,1.88500478,2122.7,2121.7,2.01004179]
[1772678965376,1.88500478,2122.7,2121.9,2.00466334]
[1772678967173,4.28684823,2122.7,2121.7,0.00537845]
[1772678967378,1.9435054,2122.6,2121.7,0.00537845]
[1772678968278,1.9435054,2122.6,2121.7,2.0666429]
[1772678968970,1.9423054,2122.6,2121.7,2.0666429]
[1772678971176,1.9423054,2122.6,2121.7,0.00537845]
[1772678977383,1.9423054,2122.6,2121.7,2.0666429]
[1772678982679,1.9423054,2122.6,2121.7,2.3022329]
[1772678983581,1.9435054,2122.8,2122.0,2.06126445]
[1772678983782,1.9435054,2123.4,2122.6,2.06126445]
[1772678984989,1.94850462,2123.4,2122.6,2.06126445]
[1772678987487,1.93946075,2123.4,2122.8,2.06126445]
[1772678987686,1.9435054,2124.3,2123.3,2.06126445]
[1772678988985,1.94864312,2124.3,2123.3,2.06676187]
[1772678989584,1.94684312,2124.3,2123.5,2.04080389]
[1772678989786,1.94684312,2124.3,2123.3,2.04630131]
[1772678991189,2.0978689,2123.8,2122.9,2.04080389]
[1772678991394,2.0978689,2123.8,2122.7,2.04080389]
[1772678992290,2.0978689,2123.8,2122.7,2.04512597]
[1772678993795,2.0978689,2123.5,2122.7,0.00432208]
[1772678993997,2.0978689,2123.5,2122.3,2.04080389]
[1772678994893,2.0978689,2123.3,2122.3,2.04080389]
[1772678995087,2.0978689,2123.3,2122.3,2.0463566]
[1772678995892,2.0978689,2123.3,2122.3,0.00555271]
[1772678997095,2.0978689,2123.3,2122.3,2.0463566]
[1772678998889,2.0978689,2123.2,2122.3,2.0463566]
[1772678999095,2.0978689,2123.2,2122.3,0.00555271]
[1772679000398,2.0978689,2123.2,2122.3,2.0463566]
[1772679000596,2.0978689,2123.1,2122.3,2.0463566]
[1772679001497,2.0978689,2123.1,2122.3,0.00555271]
[1772679001698,2.0978689,2122.9,2121.8,2.04080389]
[1772679002896,2.0978689,2122.9,2121.8,2.04642215]
[1772679003893,2.0978689,2122.9,2121.8,0.00561826]
[1772679005194,2.0978689,2122.9,2121.8,2.04642215]
[1772679005793,2.0978689,2122.7,2122.0,2.04080389]
[1772679006000,0.00440053,2122.7,2122.2,2.04080389]
[1772679006199,2.0978689,2122.9,2122.2,2.04080389]
[1772679007095,0.00585358,2122.9,2122.4,2.04080389]
[1772679007300,2.0978689,2123.2,2122.4,2.04080389]
[1772679007501,1.56137963,2123.7,2122.9,2.04080389]
[1772679007704,2.0978689,2124.0,2123.2,0.23543]
[1772679007895,2.0978689,2124.0,2123.3,2.04080389]
[1772679008096,2.0978689,2124.0,2122.8,2.04080389]
[1772679008292,2.10170792,2124.0,2123.2,0.00401356]
[1772679008494,2.10170792,2124.0,2123.2,2.04481745]
[1772679010803,2.0978689,2123.9,2123.2,2.04481745]
[1772679011200,2.0968689,2123.9,2123.2,2.04481745]
[1772679011904,0.00383902,2124.0,2123.4,2.04080389]
[1772679013097,2.40184345,2125.0,2123.4,2.04080389]
[1772679013098,12.474,2124.6,2123.4,2.04080389]
[1772679013301,2.0978689,2124.4,2123.4,2.04080389]
[1772679013497,2.0978689,2124.4,2123.5,0.2354]
[1772679013703,2.0978689,2124.4,2123.6,2.04080389]
[1772679014104,2.10288117,2124.4,2123.6,2.04080389]
[1772679014705,2.0978689,2124.2,2123.6,2.04080389]
[1772679016006,2.0978689,2124.2,2123.3,2.40184345]
[1772679016308,2.0978689,2124.1,2123.2,2.04481745]
[1772679017107,2.0978689,2124.0,2123.2,2.04481745]
[1772679018614,2.0978689,2124.0,2123.3,1.95790455]
[1772679019909,2.09902223,2124.3,2123.6,1.95790455]
[1772679021406,2.09902223,2124.3,2123.4,2.19331455]
[1772679021813,1.52961223,2124.3,2123.9,1.95790455]
[1772679022117,2.1040345,2124.4,2123.9,1.95790455]
[1772679022312,2.3933427,2125.6,2123.8,0.23536]
[1772679022313,2.09902223,2125.7,2124.5,1.95790455]
[1772679022522,2.09902223,2125.5,2124.6,1.95790455]
[1772679023216,2.09902223,2125.3,2124.6,1.95790455]
[1772679023414,2.10490685,2125.3,2124.6,1.95790455]
[1772679023614,2.09902223,2125.2,2124.6,1.95790455]
[1772679024010,2.09902223,2125.0,2124.2,0.23532]
[1772679024211,2.09902223,2125.0,2124.2,2.19322455]
[1772679024518,2.36108947,2125.3,2124.2,2.19322455]
[1772679024519,2.09902223,2124.8,2124.2,2.19322455]
[1772679026118,2.23375278,2124.8,2124.2,2.19322455]
[1772679026917,2.09902223,2124.7,2124.2,0.23532]
[1772679027111,2.09902223,2124.7,2124.0,1.95790455]
[1772679028419,2.04377271,2124.5,2124.0,1.95790455]
[1772679029820,2.04377271,2124.4,2123.8,1.97858133]
[1772679030412,2.04377271,2124.3,2123.7,0.23537]
[1772679030613,2.17850326,2124.3,2123.7,0.23537]
[1772679030921,2.04377271,2124.1,2123.7,2.21395133]
[1772679031119,2.17850326,2124.3,2123.7,2.21395133]
[1772679031521,2.04377271,2124.1,2123.7,2.21395133]
[1772679031814,2.04047271,2124.1,2123.7,1.97858133]
[1772679032015,2.04377271,2124.0,2123.5,1.97858133]
[1772679032423,2.04377271,2125.2,2123.5,1.97858133]
[1772679032618,2.04377271,2124.6,2123.3,1.97858133]
[1772679033019,2.04377271,2124.3,2123.3,1.97858133]
[1772679033622,2.04377271,2124.1,2123.3,1.97858133]
[1772679034418,2.04377271,2124.1,2123.5,1.97858133]
[1772679034623,2.17850326,2124.1,2123.5,1.97858133]
[1772679034825,2.04377271,2123.9,2123.5,1.97858133]
[1772679035223,4.39897756,2123.9,2123.5,1.97858133]
[1772679036720,2.35520485,2123.8,2123.5,1.97858133]
[1772679037027,1.87566104,2123.8,2123.5,1.97858133]
[1772679037427,1.38902104,2123.8,2123.5,1.97858133]
[1772679037626,0.32458104,2123.8,2123.5,1.97858133]
[1772679037825,1.04e-06,2123.8,2123.5,1.97858133]
[1772679038127,2.04377271,2124.1,2123.5,1.97858133]
[1772679038328,2.04377271,2124.0,2123.5,1.97858133]
[1772679038526,1.48960271,2124.0,2123.7,1.97858133]
[1772679038726,1.62433326,2124.0,2123.7,1.97858133]
[1772679038926,1.10959326,2124.0,2123.7,1.97858133]
[1772679039128,1.11554713,2124.0,2123.7,1.97858133]
[1772679039621,1.11554713,2124.0,2123.6,2.21397133]
[1772679039823,1.11554713,2124.0,2123.2,0.00401356]
[1772679042434,1.11554713,2124.0,2123.2,1.98259489]
[1772679043131,2.04377271,2125.2,2124.1,0.23533]
[1772679043336,2.04377271,2125.0,2124.1,2.21391133]
[1772679044236,2.04807393,2125.0,2124.1,2.21391133]